bitfinex-derivatives/quotes_ETHF0:USTF0_20251006
["timestamp","ask_amount","ask_price","bid_price","bid_amount"]
[1759722341033,0.2109,4533.8,4533.7,0.7569]
[1759722341428,0.5429,4533.8,4533.7,0.7569]
[1759722341934,0.7548,4533.8,4533.7,0.4259]
[1759722342134,0.7548,4533.8,4533.7,0.2087]
[1759722343037,0.7548,4533.8,4533.7,0.7569]
[1759722346637,0.7548,4533.8,4533.7,0.4259]
[1759722347940,0.7548,4533.8,4533.7,0.7365]
[1759722348533,0.7548,4533.8,4533.7,0.4259]
[1759722349042,0.8755,4533.5,4533.4,1.41544627]
[1759722349341,0.8755,4533.5,4533.4,1.94214627]
[1759722350342,1.65418771,4533.5,4533.4,1.19034627]
[1759722353142,0.8755,4533.5,4533.4,1.94214627]
[1759722355138,0.8755,4533.5,4533.4,0.7518]
[1759722355340,0.8755,4533.5,4533.4,0.4412]
[1759722355544,0.8755,4533.5,4533.3,1.19034627]
[1759722355545,0.7513,4533.4,4533.3,1.19034627]
[1759722355844,0.7513,4533.4,4533.3,1.41544627]
[1759722356845,0.7513,4533.4,4533.3,1.19034627]
[1759722357953,0.7513,4533.4,4533.3,1.94214627]
[1759722358248,0.7513,4533.4,4533.3,1.63154627]
[1759722358449,0.7513,4533.4,4533.3,1.94214627]
[1759722360455,0.7513,4533.4,4533.3,1.63154627]
[1759722360749,0.7513,4533.2,4533.1,1.19034627]
[1759722360949,0.8755,4533.0,4532.9,1.21480491]
[1759722361154,0.8755,4533.0,4532.9,0.02445864]
[1759722363656,0.7616,4533.0,4532.9,1.96660491]
[1759722363855,0.5406,4533.0,4532.9,1.96660491]
[1759722368757,0.3287,4533.0,4532.9,1.96660491]
[1759722368961,4.48018,4533.5,4533.4,0.7518]
[1759722369162,5.16493804,4533.5,4533.4,0.7518]
[1759722369661,5.16493804,4533.5,4533.4,0.4412]
[1759722369964,0.39691,4533.3,4533.2,0.2251]
[1759722370162,1.14821,4533.3,4533.2,0.2251]
[1759722371067,0.8755,4533.0,4532.9,1.21480491]
[1759722371259,1.65418771,4533.0,4532.9,1.21480491]
[1759722372968,1.65418771,4533.0,4532.9,0.02445864]
[1759722373160,4.86198771,4533.0,4532.9,0.02445864]
[1759722373560,0.1242,4532.5,4532.4,1.19034627]
[1759722373766,0.3287,4532.2,4532.1,4.39814627]
[1759722373965,1.52998771,4532.2,4532.1,4.39814627]
[1759722374360,1.52998771,4532.2,4532.1,3.2078]
[1759722374667,1.53281793,4532.2,4532.1,3.21066435]
[1759722377165,1.53281793,4532.2,4532.1,0.00286435]
[1759722377364,4.74061793,4532.2,4532.1,0.00286435]
[1759722379165,4.96161793,4532.2,4532.1,0.00286435]
[1759722381166,5.95411793,4532.2,4531.5,3.2078]
[1759722381368,0.7531,4531.4,4531.3,0.2243]
[1759722381564,0.9741,4531.4,4531.3,0.7617]
[1759722382065,0.7531,4531.2,4531.1,1.19034627]
[1759722382267,1.53178771,4531.2,4531.1,0.00246014]
[1759722382773,1.53178771,4531.2,4531.1,0.22676014]
[1759722387575,1.53178771,4531.2,4531.1,0.00246014]
[1759722389771,0.1365,4531.5,4531.4,0.39706]
[1759722389978,0.8896,4532.0,4531.9,0.2243]
[1759722390172,0.39702,4531.9,4531.1,0.00246014]
[1759722390373,0.3299,4531.6,4531.2,0.3253]
[1759722390570,0.8896,4531.5,4531.4,0.7617]
[1759722390773,0.4232,4531.2,4531.1,0.22676014]
[1759722391072,0.7531,4531.2,4531.1,0.22676014]
[1759722391271,0.7531,4531.2,4531.1,0.76416014]
[1759722391871,0.7531,4531.2,4531.1,0.43886014]
[1759722392273,0.9741,4531.2,4531.1,0.00246014]
[1759722392468,0.7531,4531.2,4531.1,0.43886014]
[1759722392673,1.15018,4531.2,4531.1,0.22676014]
[1759722393173,1.15018,4531.2,4531.1,0.00246014]
[1759722393778,1.15018,4531.2,4531.1,0.22676014]
[1759722395382,1.15018,4531.2,4531.1,0.44256014]
[1759722395383,0.7531,4531.2,4531.1,0.44256014]
[1759722395583,0.7531,4531.2,4531.1,0.76176014]
[1759722396379,1.15018,4531.2,4531.1,0.00246014]
[1759722408493,0.3123,4531.4,4531.1,0.00246014]
[1759722408789,0.7557,4531.8,4531.7,0.95044]
[1759722408985,0.7557,4531.8,4531.7,4.36784]
[1759722409181,0.7557,4531.8,4531.7,3.9708]
[1759722411199,0.7557,4531.8,4531.7,0.425]
[1759722413593,0.39703,4531.9,4531.2,1.19034627]
[1759722413594,0.7557,4531.4,4531.2,1.19034627]
[1759722413793,1.99660172,4531.3,4531.2,1.19034627]
[1759722413988,0.7557,4531.2,4531.1,1.19280641]
[1759722414190,0.7557,4531.2,4531.1,0.00246014]
[1759722415402,0.7557,4531.2,4531.1,0.42746014]
[1759722415891,0.7557,4531.2,4531.1,0.00246014]
[1759722418400,0.9767,4531.2,4531.1,0.00246014]
[1759722420603,0.7557,4531.2,4531.1,0.00246014]
[1759722420804,0.9767,4531.2,4531.1,0.00246014]
[1759722423905,0.7557,4531.2,4531.1,0.00246014]
[1759722424205,0.9767,4531.2,4531.1,0.00246014]
[1759722427306,0.9767,4531.2,4531.1,0.76546014]
[1759722427504,0.9767,4531.2,4531.1,0.42746014]
[1759722427704,0.7599,4531.2,4531.1,0.76546014]
[1759722427905,0.9767,4531.2,4531.1,0.00246014]
[1759722428511,0.9767,4531.2,4531.1,0.21206014]
[1759722429004,0.7557,4531.2,4531.1,0.21206014]
[1759722429207,0.9767,4531.2,4531.1,0.00246014]
[1759722431107,0.9767,4531.2,4531.1,0.21206014]
[1759722431308,0.9767,4531.2,4531.1,0.00246014]
[1759722435509,0.1355,4531.5,4531.1,5.00246014]
[1759722435708,0.5789,4531.5,4531.1,0.00246014]
[1759722435905,0.4434,4531.2,4531.1,0.00246014]
[1759722436212,0.7557,4531.2,4531.1,0.00246014]
[1759722437012,0.9767,4531.2,4531.1,0.00246014]
[1759722437213,0.9767,4531.2,4531.1,0.21206014]
[1759722437712,0.9767,4531.2,4531.1,0.00246014]
[1759722439111,0.9767,4531.2,4531.1,0.42866014]
[1759722441504,0.7557,4531.2,4531.1,0.42866014]
[1759722441705,0.9767,4531.2,4531.1,1.93970641]
[1759722441913,0.5389,4531.2,4531.1,1.93970641]
[1759722443415,0.7587,4531.2,4531.1,1.93970641]
[1759722444212,0.7587,4531.2,4531.1,1.61900641]
[1759722445017,0.7587,4531.2,4531.1,1.93970641]
[1759722447314,0.7587,4531.2,4531.1,1.41360641]
[1759722447523,0.7587,4531.2,4531.1,0.00246014]
[1759722447720,0.7587,4531.2,4531.1,1.19280641]
[1759722447917,0.7587,4531.2,4531.1,1.41360641]
[1759722448318,0.7587,4531.2,4531.1,1.19280641]
[1759722449214,0.7587,4531.2,4531.1,0.00246014]
[1759722449414,0.7587,4531.2,4531.1,1.19280641]
[1759722449620,0.9797,4531.2,4531.1,0.00246014]
[1759722449920,0.9797,4531.2,4531.1,0.22326014]
[1759722450114,0.9797,4531.2,4531.1,0.74936014]
[1759722450918,0.7587,4531.2,4531.1,0.74936014]
[1759722451115,0.7587,4531.2,4531.1,1.93970641]
[1759722451316,0.7587,4531.2,4531.1,0.00246014]
[1759722451620,0.7587,4531.2,4531.1,0.22326014]
[1759722456125,0.7587,4531.2,4531.1,0.00246014]
[1759722461633,0.7587,4531.2,4531.1,0.75806014]
[1759722461821,0.7587,4531.2,4531.1,0.00246014]
[1759722463135,0.9797,4531.2,4531.1,0.75806014]
[1759722464733,0.5389,4531.2,4531.1,0.75806014]
[1759722464937,0.39707,4531.4,4531.1,1.61610641]
[1759722464938,0.5578,4531.4,4531.1,1.61610641]
[1759722465133,0.9914,4531.4,4531.3,0.7556]
[1759722465535,0.9914,4531.4,4531.3,1.94594627]
[1759722465837,0.9914,4531.4,4531.3,0.7556]
[1759722467329,0.9914,4531.4,4531.3,0.2057]
[1759722467532,0.9914,4531.4,4531.3,1.39686084]
[1759722467738,0.4383,4531.2,4531.1,0.00246014]
[1759722467939,0.78,4531.2,4531.1,0.00246014]
[1759722468643,1.71512172,4531.2,4531.1,0.00246014]
[1759722468937,1.71512172,4531.2,4531.1,0.21616014]
[1759722469342,1.71512172,4531.2,4531.1,0.00246014]
[1759722470043,1.71512172,4531.2,4531.1,0.21616014]
[1759722470244,0.78,4531.2,4531.1,0.76246014]
[1759722470444,0.3417,4531.2,4531.1,0.76246014]
[1759722472945,0.3417,4531.2,4531.1,3.97026014]
[1759722473345,0.5605,4531.2,4531.1,3.97026014]
[1759722474545,0.3417,4531.2,4531.1,3.97026014]
[1759722474747,0.3417,4531.9,4531.8,0.5463]
[1759722474946,0.5605,4531.9,4531.8,0.76]
[1759722475147,0.78,4531.9,4531.8,0.76]
[1759722475350,0.78,4531.9,4531.8,0.2137]
[1759722475751,0.4383,4531.7,4531.6,1.40455357]
[1759722476047,1.55938695,4531.7,4531.6,1.40455357]
[1759722476849,1.55938695,4531.7,4531.6,1.19085357]
[1759722477052,1.55938695,4531.7,4531.5,1.40455357]
[1759722477053,0.78,4531.6,4531.5,1.40455357]
[1759722480551,1.55938695,4531.6,4531.5,1.40455357]
[1759722482555,1.55938695,4531.6,4531.5,1.74085357]
[1759722483057,1.55938695,4531.6,4531.5,1.95085357]
[1759722483452,0.3417,4531.6,4531.5,1.95085357]
[1759722483650,0.77938695,4531.9,4531.5,1.95085357]
[1759722483847,1.33988695,4531.9,4531.8,0.76]
[1759722484254,1.55938695,4531.9,4531.8,0.76]
[1759722484860,1.33988695,4531.9,4531.8,0.76]
[1759722485358,1.55938695,4531.9,4531.8,0.76]
[1759722488458,1.55938695,4531.9,4531.8,1.15703]
[1759722489558,1.55938695,4531.9,4531.8,0.76]
[1759722489956,0.78,4531.9,4531.8,0.76]
[1759722492162,0.3417,4532.1,4532.0,0.76]
[1759722492351,0.3417,4532.1,4532.0,1.94954718]
[1759722492961,0.00283022,4532.2,4532.1,1.157]
[1759722493161,0.00283022,4532.2,4532.1,4.3648]
[1759722493356,0.34453022,4532.2,4532.1,4.3648]
[1759722494164,0.34453022,4532.2,4532.1,5.55434718]
[1759722496663,0.34453022,4532.2,4532.1,5.37834718]
[1759722496664,0.78283022,4532.2,4532.1,5.37834718]
[1759722496858,0.78283022,4532.2,4532.1,5.77534718]
[1759722497465,0.78283022,4532.2,4532.1,4.5858]
[1759722497964,1.1578,4532.1,4532.0,1.18954718]
[1759722498166,0.7608,4531.8,4531.7,1.18954718]
[1759722498361,0.7608,4531.7,4531.6,3.2078]
[1759722501663,0.7608,4531.7,4531.5,0.39705]
[1759722502371,0.5611,4531.5,4531.4,1.40054718]
[1759722502666,1.67658695,4531.5,4531.4,1.95544718]
[1759722504474,1.67658695,4531.5,4531.4,0.7659]
[1759722504771,1.67658695,4531.5,4531.4,1.95557314]
[1759722504971,1.67658695,4531.5,4531.4,1.40067314]
[1759722505472,1.67658695,4531.5,4531.4,1.95557314]
[1759722507568,1.67658695,4531.5,4531.4,1.40067314]
[1759722507870,0.73318,4531.2,4531.1,3.21026014]
[1759722508173,1.54018695,4531.2,4531.1,3.21026014]
[1759722509466,1.54018695,4531.2,4531.1,0.00246014]
[1759722514879,1.76118695,4531.2,4531.1,0.00246014]
[1759722521185,1.76118695,4531.2,4531.1,0.22386014]
[1759722523892,1.76118695,4531.2,4531.1,0.00246014]
[1759722527190,1.54018695,4531.2,4531.1,0.00246014]
[1759722527392,1.76118695,4531.2,4531.1,0.00246014]
[1759722531097,1.91748039,4531.2,4531.1,0.00246014]
[1759722535604,1.17123,4530.6,4530.5,3.2078]
[1759722535901,1.39223,4530.6,4530.5,3.2078]
[1759722536494,1.39223,4530.6,4530.5,3.2093492]
[1759722536894,1.39223,4530.6,4530.5,3.4307492]
[1759722538204,1.39223,4530.6,4530.5,3.2093492]
[1759722539605,1.39223,4530.6,4530.5,3.9622492]
[1759722539902,1.39223,4530.6,4530.5,3.6459492]
[1759722540206,0.7741,4530.6,4530.5,3.9622492]
[1759722540505,0.9951,4530.6,4530.5,3.9622492]
[1759722540897,0.5526,4530.6,4530.5,3.9622492]
[1759722541202,0.7736,4530.6,4530.5,3.9622492]
[1759722541397,0.39712,4530.9,4530.8,0.39712]
[1759722541398,0.221,4530.9,4530.8,0.39712]
[1759722541596,0.3277,4531.1,4531.0,0.4366]
[1759722541799,1.02392843,4531.1,4531.0,0.7529]
[1759722542205,1.24882843,4531.1,4531.0,0.7529]
[1759722543006,1.47032843,4531.1,4531.0,0.7529]
[1759722543507,0.3277,4531.4,4531.0,1.2742]
[1759722543703,0.5526,4531.3,4531.2,0.5377]
[1759722543905,0.9951,4531.3,4531.2,0.7529]
[1759722547604,0.93568039,4531.4,4531.3,1.14997]
[1759722547808,0.3277,4531.6,4531.0,3.332]
[1759722547809,0.3277,4531.6,4531.5,0.7529]
[1759722548002,1.02961011,4531.6,4531.5,0.7529]
[1759722548401,1.25111011,4531.6,4531.5,0.7529]
[1759722548700,1.02961011,4531.6,4531.5,0.7529]
[1759722548901,0.47701011,4531.6,4531.5,0.7529]
[1759722549102,1.70928039,4531.8,4531.7,0.7529]
[1759722549301,2.18620385,4531.8,4531.7,0.7529]
[1759722549810,3.2078,4532.0,4531.8,0.71333]
[1759722550004,0.3277,4532.0,4531.9,0.7529]
[1759722550605,0.00283022,4532.2,4532.1,0.7529]
[1759722551309,0.33053022,4532.2,4532.1,0.7529]
[1759722554507,0.39694,4532.9,4532.1,0.7529]
[1759722554508,3.2078,4533.4,4533.3,0.8335]
[1759722554804,3.6542,4533.9,4533.8,0.2214]
[1759722555009,0.5718,4533.5,4533.4,0.2214]
[1759722555199,1.83518039,4533.5,4533.4,0.2214]
[1759722555602,1.8378853,4533.5,4533.4,0.22305702]
[1759722556405,1.8378853,4533.5,4533.4,0.75455702]
[1759722560703,0.53750491,4533.5,4533.4,0.75455702]
[1759722562609,0.75110491,4533.5,4533.4,0.75455702]
[1759722563117,0.32430491,4533.5,4533.4,0.75455702]
[1759722563319,0.3216,4534.4,4533.8,0.4415]
[1759722563511,0.5348,4534.4,4534.3,1.16061]
[1759722563712,0.7484,4534.4,4534.3,0.7638]
[1759722564413,0.75096751,4534.4,4534.3,0.7638]
[1759722564609,0.75096751,4534.4,4534.3,0.4415]
[1759722564815,0.75096751,4534.4,4534.3,0.7638]
[1759722565419,0.53736751,4534.4,4534.3,0.7638]
[1759722565619,0.00256751,4534.4,4534.3,0.7638]
[1759722565821,0.00256751,4534.4,4534.3,5.7638]
[1759722567220,0.32416751,4534.4,4534.3,0.7638]
[1759722567422,0.75096751,4534.4,4534.3,0.4415]
[1759722567722,0.75096751,4534.4,4534.3,0.7638]
[1759722567914,0.32416751,4534.4,4534.3,0.7638]
[1759722570023,0.00256751,4534.4,4534.3,0.7638]
[1759722570222,0.32416751,4534.4,4534.3,0.7638]
[1759722572023,0.53736751,4534.4,4534.3,0.7638]
[1759722575118,0.75096751,4534.4,4534.3,0.7638]
[1759722576023,0.2203,4534.0,4533.9,3.7411]
[1759722576224,1.84218039,4534.0,4533.9,3.81385]
[1759722578523,1.84218039,4534.0,4533.9,4.13795]
[1759722578921,1.84218039,4534.0,4533.9,3.81385]
[1759722579123,1.84218039,4534.0,4533.9,4.35335]
[1759722580130,1.84218039,4534.0,4533.9,3.417]
[1759722580427,1.84218039,4534.0,4533.3,3.2078]
[1759722580428,0.9065,4533.5,4533.3,3.2078]
[1759722580729,1.84218039,4533.5,4532.8,3.2078]
[1759722582024,1.84218039,4533.5,4532.8,3.60474]
[1759722582229,1.84218039,4533.5,4532.8,3.92884]
[1759722584730,1.84218039,4533.5,4533.0,0.3241]
[1759722585124,1.84218039,4533.5,4532.8,3.2078]
[1759722585422,1.84218039,4533.5,4532.9,0.3241]
[1759722588129,1.84218039,4533.5,4532.8,3.2078]
[1759722588427,0.9065,4533.5,4533.4,0.74685702]
[1759722590529,0.9065,4533.5,4533.4,0.00165702]
[1759722592832,1.1275,4533.5,4533.4,0.00165702]
[1759722593028,1.90627022,4533.5,4533.4,0.00165702]
[1759722593238,0.9065,4533.5,4533.4,0.21205702]
[1759722593541,1.90627022,4533.5,4533.4,0.21205702]
[1759722593741,1.90627022,4533.5,4533.4,0.00165702]
[1759722599443,0.9065,4533.5,4533.4,0.21205702]
[1759722599646,1.90627022,4533.5,4533.4,0.21205702]
[1759722599944,1.90627022,4533.5,4533.4,0.00165702]
[1759722600547,1.68527022,4533.5,4533.4,0.00165702]
[1759722600735,1.68527022,4533.5,4533.4,0.74685702]
[1759722601046,1.68527022,4533.5,4533.4,0.43155702]
[1759722601744,1.68527022,4533.5,4533.4,0.00165702]
[1759722603343,1.68527022,4533.5,4533.4,0.21205702]
[1759722603344,1.90627022,4533.5,4533.4,0.21205702]
[1759722603647,1.90627022,4533.5,4533.4,0.00165702]
[1759722607145,1.68527022,4533.5,4533.4,0.00165702]
[1759722607343,1.90627022,4533.5,4533.4,0.00165702]
[1759722607748,0.9065,4533.5,4533.4,0.21205702]
[1759722607948,1.1275,4533.5,4533.4,0.21205702]
[1759722609348,0.9065,4533.5,4533.4,0.74685702]
[1759722610056,0.9065,4533.5,4533.4,0.43155702]
[1759722610252,1.39953748,4533.5,4533.4,0.21205702]
[1759722610554,1.39953748,4533.5,4533.4,0.00165702]
[1759722617855,1.39953748,4533.5,4531.9,0.17653098]
[1759722617856,0.4253,4532.4,4532.3,4.78701072]
[1759722618056,1.15443,4531.8,4531.7,1.57921072]
[1759722618364,0.7574,4531.3,4531.2,3.4156]
[1759722618559,0.5607,4531.0,4530.9,1.78701072]
[1759722618858,0.89523319,4531.0,4530.9,1.78860827]
[1759722619061,0.89523319,4531.0,4530.9,0.20939755]
[1759722619559,0.33453319,4531.0,4530.9,0.73639755]
[1759722619759,0.54523319,4531.0,4530.9,0.73639755]
[1759722620762,0.75983319,4531.0,4530.9,0.73639755]
[1759722621364,0.89523319,4531.0,4530.9,0.73639755]
[1759722621563,0.54523319,4531.0,4530.9,0.73639755]
[1759722621760,0.5428,4531.7,4531.6,1.13185]
[1759722621962,1.90650022,4533.0,4531.9,0.527]
[1759722621963,0.77877022,4532.7,4531.9,0.527]
[1759722622266,1.15434,4532.9,4532.8,0.2078]
[1759722622665,1.15677061,4532.9,4532.8,0.2078]
[1759722623168,1.53860083,4532.9,4532.8,0.7348]
[1759722625766,1.53860083,4532.9,4532.8,0.4249]
[1759722630582,0.75983061,4532.9,4532.8,0.4249]
[1759722631681,0.75983061,4532.9,4532.8,0.7348]
[1759722631979,0.75983061,4532.9,4532.8,3.9426]
[1759722635884,0.75983061,4532.9,4532.8,3.6327]
[1759722636182,0.75983061,4532.9,4532.8,3.2078]
[1759722636786,0.75983061,4532.9,4532.8,3.6407]
[1759722636985,0.75983061,4532.9,4532.8,3.9787]
[1759722640883,0.75983061,4532.9,4532.8,3.6407]
[1759722641889,0.75983061,4532.9,4532.8,3.4174]
[1759722642788,0.75983061,4532.9,4532.8,3.9787]
[1759722648991,0.75983061,4532.9,4532.8,0.2096]
[1759722649194,0.8697,4532.5,4532.4,1.13557]
[1759722649490,0.8697,4532.5,4532.3,3.4288]
[1759722649491,0.3213,4532.4,4532.3,3.2078]
[1759722649689,1.72414022,4532.5,4531.8,3.9464]
[1759722649690,0.746,4531.9,4531.8,3.9464]
[1759722649888,1.52477022,4531.9,4531.8,4.1674]
[1759722652991,0.746,4531.9,4531.8,4.1674]
[1759722653198,0.746,4531.9,4531.8,3.9464]
[1759722654291,0.3213,4532.4,4532.3,0.7386]
[1759722654495,0.93707,4532.5,4532.4,0.7386]
[1759722654699,0.3213,4532.5,4532.4,0.7386]
[1759722655003,0.93704,4532.8,4532.7,0.7386]
[1759722655201,1.43611269,4532.8,4532.7,0.7386]
[1759722655400,1.03917269,4532.8,4532.7,1.13555]
[1759722655698,1.24507269,4532.8,4532.7,0.7386]
[1759722655906,2.18014634,4532.8,4532.7,0.4223]
[1759722661909,2.18014634,4532.8,4532.7,0.2086]
[1759722662904,0.5401,4532.7,4532.6,0.2086]
[1759722663112,0.746,4532.7,4532.6,0.7386]
[1759722664197,0.00243061,4532.9,4532.8,0.5249]
[1759722664406,0.00243061,4532.9,4532.8,0.9596]
[1759722665706,0.8697,4532.5,4532.4,0.4296]
[1759722666703,0.8697,4532.5,4532.4,0.7459]
[1759722666906,0.5401,4532.8,4532.7,1.13555]
[1759722667103,0.746,4532.8,4532.7,1.13555]
[1759722667303,0.746,4532.8,4532.7,0.7386]
[1759722667707,0.746,4532.8,4532.7,0.4223]
[1759722667909,0.8697,4532.5,4532.4,0.6433]
[1759722668107,0.8697,4532.5,4532.4,0.9596]
[1759722671009,0.8697,4532.5,4532.4,0.751]
[1759722671213,0.5484,4532.0,4531.8,3.2078]
[1759722671413,0.746,4531.9,4531.8,3.4164]
[1759722671614,0.3213,4531.9,4531.8,4.1674]
[1759722671911,0.5401,4532.2,4532.1,1.13559]
[1759722674009,0.3213,4532.4,4532.2,0.39699]
[1759722674216,0.3213,4532.4,4532.3,0.2086]
[1759722674217,0.746,4532.4,4532.3,0.2086]
[1759722674714,0.746,4531.9,4531.8,3.4164]
[1759722674916,0.746,4531.9,4531.8,3.6374]
[1759722675212,0.746,4531.9,4531.8,4.1674]
[1759722675409,1.05877365,4532.5,4532.4,0.2086]
[1759722675410,2.20174365,4532.5,4532.4,0.2086]
[1759722675605,1.80477365,4532.5,4532.4,0.4223]
[1759722675911,0.746,4532.5,4532.4,0.7386]
[1759722676310,0.5401,4532.8,4532.7,0.4223]
[1759722676512,0.00243061,4532.9,4532.7,1.04025]
[1759722676713,0.00243061,4532.9,4532.8,3.6301]
[1759722677020,0.00243061,4532.9,4532.8,3.9464]
[1759722677813,0.33543061,4532.9,4532.8,3.9464]
[1759722678616,0.00243061,4532.9,4532.8,3.9464]
[1759722681718,0.55593061,4532.9,4532.8,3.9464]
[1759722684422,0.00243061,4532.9,4532.8,3.9464]
[1759722691128,0.33543061,4532.9,4532.8,3.9464]
[1759722691626,0.55593061,4532.9,4532.8,4.1674]
[1759722692214,0.77403061,4532.9,4532.8,3.6301]
[1759722692420,1.27288397,4532.9,4532.8,3.2078]
[1759722694022,0.3462,4532.5,4532.4,0.4274]
[1759722694326,1.82857365,4532.5,4532.4,0.4274]
[1759722694831,2.22554365,4532.5,4532.4,0.4274]
[1759722695429,2.22554365,4532.5,4532.4,0.9826]
[1759722696429,1.82857365,4532.5,4532.4,0.9826]
[1759722699221,1.82857365,4532.5,4532.4,0.7616]
[1759722699426,1.82857365,4532.5,4532.4,0.9826]
[1759722699733,1.70197365,4532.5,4532.4,0.9826]
[1759722702727,0.34083061,4532.9,4532.8,1.15854]
[1759722702927,0.00243061,4532.9,4532.8,4.58734]
[1759722704834,0.76933061,4532.9,4532.8,4.1904]
[1759722705233,1.70440426,4532.9,4532.8,4.1904]
[1759722706027,1.70440426,4532.9,4532.8,3.4142]
[1759722706228,1.70440426,4532.9,4532.8,3.2078]
[1759722706429,1.70440426,4532.9,4532.3,0.221]
[1759722706430,0.82548,4532.4,4532.3,0.221]
[1759722706629,0.82548,4532.4,4532.2,0.221]
[1759722706630,0.7669,4532.3,4532.2,0.221]
[1759722708434,0.1341,4531.5,4531.4,3.2078]
[1759722708743,1.82087365,4531.5,4531.4,3.2078]
[1759722709034,1.82087365,4531.5,4531.4,3.9763]
[1759722709627,0.8858,4531.5,4531.4,3.9763]
[1759722709828,0.7517,4531.5,4531.4,3.9763]
[1759722711033,0.8858,4531.5,4531.4,3.9763]
[1759722711726,2.21793365,4531.5,4531.4,3.2078]
[1759722711927,0.1341,4531.0,4530.9,0.00159755]
[1759722712131,0.8858,4531.0,4530.9,0.00159755]
[1759722713131,1.66547357,4531.0,4530.9,0.00159755]
[1759722717743,0.7517,4530.3,4530.1,0.221]
[1759722717937,1.53137357,4530.3,4530.2,3.4299]
[1759722718842,1.92853357,4530.3,4530.2,3.21033618]
[1759722719143,1.53137357,4530.3,4530.2,3.43243618]
[1759722720138,0.7517,4530.3,4530.2,3.82960618]
[1759722720344,1.53137357,4530.3,4530.2,4.37600618]
[1759722720543,1.53137357,4530.3,4530.2,3.97883618]
[1759722720746,1.53137357,4530.3,4530.2,3.43243618]
[1759722722140,1.53137357,4530.3,4530.2,3.97883618]
[1759722725242,1.53137357,4530.3,4530.2,3.21033618]
[1759722725544,1.53137357,4530.3,4530.2,3.43243618]
[1759722725746,0.7517,4530.3,4530.2,3.97883618]
[1759722725940,0.7517,4530.3,4530.2,3.63833618]
[1759722726336,0.7517,4530.3,4530.2,3.97883618]
[1759722726540,1.32137357,4530.6,4530.5,0.7685]
[1759722728541,1.53137357,4530.6,4530.5,0.7685]
[1759722728738,0.7517,4530.6,4530.5,0.7685]
[1759722728946,0.61807,4531.3,4530.8,1.16561]
[1759722729146,0.2093,4531.0,4530.9,0.3405]
[1759722729344,0.5417,4531.0,4530.9,0.7685]
[1759722729548,0.3324,4531.0,4530.9,0.7685]
[1759722730842,0.8858,4531.0,4530.9,0.7685]
[1759722731547,0.77967357,4531.1,4530.9,0.428]
[1759722731749,0.5417,4531.7,4531.6,0.7685]
[1759722732250,0.5409,4531.7,4531.6,0.7685]
[1759722732743,3.3419,4532.0,4531.6,0.4279]
[1759722732948,3.2078,4532.0,4531.9,1.16552]
[1759722733343,0.77967357,4532.1,4532.0,0.7685]
[1759722733344,0.98897357,4532.1,4532.0,0.7685]
[1759722734238,1.32137357,4532.1,4532.0,0.7685]
[1759722738556,1.53137357,4532.1,4532.0,0.7685]
[1759722738953,0.77967357,4532.4,4532.0,0.7685]
[1759722739257,1.31767357,4532.4,4532.3,0.746]
[1759722739460,1.52277357,4532.4,4532.3,0.746]
[1759722739951,1.91975357,4532.4,4532.0,0.3194]
[1759722740150,0.1339,4531.5,4531.4,3.2078]
[1759722740351,1.65667357,4531.5,4531.4,3.2078]
[1759722742460,1.65667357,4531.5,4531.4,3.427]
[1759722746554,0.877,4531.5,4531.4,3.9538]
[1759722746757,0.4319,4531.9,4531.8,0.2074]
[1759722747061,0.7431,4531.9,4531.8,0.746]
[1759722747762,0.3112,4531.8,4531.5,0.61805]
[1759722747960,0.7431,4531.6,4531.5,0.83725]
[1759722748350,0.7431,4531.6,4531.5,1.04465]
[1759722748553,0.7431,4531.6,4531.5,1.36405]
[1759722748855,0.7431,4531.6,4531.5,1.14305]
[1759722751060,0.7431,4531.6,4531.5,0.2192]
[1759722751263,0.7431,4531.6,4531.5,0.746]
[1759722751964,0.7431,4531.6,4531.4,3.2078]
[1759722752256,1.65667357,4531.5,4531.4,3.2078]
[1759722752655,0.877,4531.5,4531.4,3.2078]
[1759722752858,1.65667357,4531.5,4531.4,3.427]
[1759722755759,1.65667357,4531.5,4531.4,3.2078]
[1759722756365,2.43634714,4531.5,4531.4,3.2078]
[1759722756663,1.65667357,4531.5,4531.4,3.2078]
[1759722759058,0.877,4531.5,4531.4,3.9521]
[1759722759264,0.7431,4531.5,4531.4,3.9521]
[1759722761061,0.8764,4531.5,4531.4,3.9521]
[1759722761759,0.8764,4531.5,4531.4,3.6244]
[1759722762767,0.8764,4531.5,4531.4,3.9521]
[1759722764468,0.3112,4531.5,4531.4,3.9521]
[1759722765163,0.5361,4531.5,4531.4,3.9521]
[1759722765972,12.7266562,4569.8,4532.2,0.7443]
[1759722765973,0.3347,4532.3,4532.2,0.7443]
[1759722766168,0.5596,4532.3,4532.2,0.7443]
[1759722766371,1.28428366,4532.3,4532.2,0.7443]
[1759722767773,1.28428366,4532.3,4532.2,0.4166]
[1759722768271,1.28428366,4532.3,4532.2,0.7342]
[1759722769767,1.28428366,4532.3,4532.2,0.4166]
[1759722770977,0.5255,4531.6,4531.5,1.14875]
[1759722771171,0.5255,4531.6,4531.5,1.36975]
[1759722772270,0.7322,4531.6,4531.5,1.36975]
[1759722772872,0.7322,4531.6,4531.5,0.7517]
[1759722773478,0.3096,4531.8,4531.7,0.2183]
[1759722773678,0.3096,4531.8,4531.7,0.7517]
[1759722776076,0.5255,4531.8,4531.7,0.7517]
[1759722780276,0.3096,4532.0,4531.9,0.4341]
[1759722780484,1.02738053,4532.0,4531.9,0.7517]
[1759722781383,1.02738053,4532.0,4531.9,3.9595]
[1759722781976,0.81148053,4532.0,4531.9,3.9595]
[1759722782280,0.50188053,4532.0,4531.9,4.1805]
[1759722782782,0.7322,4532.4,4532.3,0.4341]
[1759722782982,1.23405575,4532.4,4532.3,0.7517]
[1759722784878,1.02735575,4532.4,4532.3,0.7517]
[1759722785280,0.3096,4532.4,4532.3,0.7517]
[1759722785887,1.02417188,4532.4,4532.3,0.7517]
[1759722786287,1.23087188,4532.4,4532.3,0.7517]
[1759722787084,0.49867188,4532.4,4532.3,0.7517]